fUSD/lending_fUSD_20250812
["ID","MTS","AMOUNT","RATE_DAILY","PERIOD"]
[378679495,1754956909303,150.0,0.00012,2]
[378679496,1754956966385,513.0,0.00015375,2]
[378679497,1754956967385,1000.0,0.00015516,2]
[378679498,1754956974980,5943.64,0.00015433,2]
[378679499,1754957000125,180.66,0.00015507,2]
[378679500,1754957045360,1219.42,0.00017,30]
[378679502,1754957111779,150.0,0.00015781,2]
[378679503,1754957118446,150.0,0.00015781,2]
[378679504,1754957118587,150.0,0.00015781,2]
[378679505,1754957118637,150.0,0.00015781,2]
[378679506,1754957119116,150.0,0.00015781,2]
[378679507,1754957124100,150.0,0.00015781,2]
[378679508,1754957125271,150.0,0.00015781,2]
[378679509,1754957132042,150.0,0.00015781,2]
[378679510,1754957175247,185.68,0.00015389,2]
[378679521,1754957275178,170.77,0.00015433,2]
[378679528,1754957368784,244.0,0.00024,120]
[378679539,1754957432680,-163.52741171,0.00016004,2]
[378679540,1754957432690,-250.0,0.00016004,2]
[378679541,1754957432700,-300.0,0.00016005,2]
[378679542,1754957432710,-1084.0,0.00016005,2]
[378679543,1754957432720,-1084.0,0.00016005,2]
[378679544,1754957432729,-300.0,0.00016096,2]
[378679545,1754957432739,-1084.0,0.00016105,2]
[378679546,1754957432749,-180.76738863,0.00016208,2]
[378679547,1754957432759,-170.0,0.00016231,7]
[378679548,1754957432768,-1200.0,0.00016243,2]
[378679549,1754957432777,-244.0,0.00016244,2]
[378679550,1754957432787,-166.0,0.00016245,2]
[378679551,1754957432797,-1654.0,0.00016246,2]
[378679552,1754957432806,-3167.8494,0.00016256,2]
[378679553,1754957432816,-231.28369723,0.00016326,2]
[378679554,1754957432825,-2183.31810187,0.00016326,2]
[378679555,1754957432835,-677.0,0.00016327,2]
[378679556,1754957432844,-2019.70147629,0.00016328,2]
[378679557,1754957432854,-195.32094841,0.00016335,2]
[378679558,1754957432863,-218.81580028,0.00016335,2]
[378679559,1754957432873,-110.06723672,0.00016336,2]
[378679560,1754957432885,-7716.69891813,0.00016336,2]
[378679561,1754957432908,-6444.06145191,0.00016336,2]
[378679562,1754957432917,-600.0,0.00016336,2]
[378679563,1754957432927,-160.0,0.00016336,2]
[378679564,1754957432936,-151.0,0.00016336,2]
[378679565,1754957432945,-151.0,0.00016336,2]
[378679566,1754957432954,-151.0,0.00016336,2]
[378679567,1754957432963,-151.0,0.00016336,2]
[378679568,1754957432972,-151.0,0.00016336,2]
[378679569,1754957432982,-253.06387961,0.00016336,2]
[378679570,1754957432991,-346.92554585,0.00016336,2]
[378679572,1754957433001,-2106.9103,0.00016338,2]
[378679574,1754957433010,-300.0,0.00016344,2]
[378679575,1754957433020,-5012.59433496,0.00016345,2]
[378679576,1754957433030,-1089.467,0.00016346,2]
[378679577,1754957433039,-9645.3954,0.00016346,2]
[378679578,1754957433049,-1000.0,0.00016346,2]
[378679579,1754957433058,-34264.9732,0.00016346,2]
[378679580,1754957433068,-1000.0,0.00016346,2]
[378679581,1754957433078,-5000.0,0.00016346,2]
[378679582,1754957433088,-2019.70147629,0.00016356,2]
[378679583,1754957433099,-14284.93944641,0.00016356,2]
[378679584,1754957433108,-150.0,0.00016365,2]
[378679585,1754957433118,-2264.10087164,0.00016381,2]
[378679586,1754957433128,-254.55069971,0.000164,2]
[378679587,1754957433138,-254.55069964,0.00016403,2]
[378679588,1754957433148,-1745.01755385,0.00016436,2]
[378679589,1754957433158,-406.0,0.00016438,2]
[378679590,1754957433167,-406.0,0.00016438,2]
[378679591,1754957433177,-406.0,0.00016438,2]
[378679592,1754957433187,-406.0,0.00016438,2]
[378679593,1754957433196,-406.0,0.00016438,2]
[378679594,1754957433206,-406.0,0.00016438,2]
[378679595,1754957433216,-406.0,0.00016438,2]
[378679596,1754957433225,-406.0,0.00016438,2]
[378679597,1754957433235,-406.0,0.00016438,2]
[378679598,1754957433244,-406.0,0.00016438,2]
[378679599,1754957433254,-406.0,0.00016438,2]
[378679600,1754957433264,-406.0,0.00016438,2]
[378679601,1754957433273,-406.0,0.00016438,2]
[378679602,1754957433283,-406.0,0.00016438,2]
[378679603,1754957433292,-153.0,0.00016438,2]
[378679604,1754957433302,-153.0,0.00016438,2]
[378679605,1754957433311,-153.0,0.00016438,2]
[378679606,1754957433324,-153.0,0.00016438,2]
[378679607,1754957433334,-153.0,0.00016438,2]
[378679608,1754957433344,-153.0,0.00016438,2]
[378679609,1754957433353,-153.0,0.00016438,2]
[378679610,1754957433363,-406.0,0.00016438,2]
[378679611,1754957433373,-406.0,0.00016438,2]
[378679612,1754957433382,-406.0,0.00016438,2]
[378679613,1754957433391,-406.0,0.00016438,2]
[378679614,1754957433401,-406.0,0.00016438,2]
[378679615,1754957433410,-406.0,0.00016438,2]
[378679616,1754957433420,-406.0,0.00016438,2]
[378679617,1754957433429,-209.07020245,0.00016438,2]
[378679618,1754957433442,-196.92979755,0.00016438,2]
[378679619,1754957433451,-406.0,0.00016438,2]
[378679620,1754957433462,-406.0,0.00016438,2]
[378679621,1754957433476,-406.0,0.00016438,2]
[378679622,1754957433486,-406.0,0.00016438,2]
[378679623,1754957433496,-406.0,0.00016438,2]
[378679624,1754957433505,-406.0,0.00016438,2]
[378679625,1754957433517,-153.0,0.00016438,2]
[378679626,1754957433527,-153.0,0.00016438,2]
[378679627,1754957433536,-153.0,0.00016438,2]
[378679628,1754957433546,-153.0,0.00016438,2]
[378679629,1754957433556,-153.0,0.00016438,2]
[378679630,1754957433566,-153.0,0.00016438,2]
[378679631,1754957433576,-153.0,0.00016438,2]
[378679632,1754957433586,-153.0,0.00016438,2]
[378679633,1754957433596,-153.0,0.00016438,2]
[378679634,1754957433605,-688.273481,0.00016445,2]
[378679635,1754957433615,-369.40168,0.00016445,2]
[378679636,1754957433625,-578.817988,0.00016445,2]
[378679637,1754957433634,-589.95,0.00016445,2]
[378679638,1754957433644,-597.93,0.00016445,2]
[378679639,1754957433654,-400.0,0.00016445,2]
[378679640,1754957433664,-400.0,0.00016445,2]
[378679641,1754957433674,-896.12488948,0.00016445,2]
[378679847,1754957440467,-421.48223619,0.00016445,2]
[378679850,1754957440483,-434.07287433,0.00016445,2]
[378679852,1754957440492,-400.0,0.00016445,2]
[378679854,1754957440501,-468.46,0.00016445,2]
[378679856,1754957440511,-400.0,0.00016445,2]
[378679858,1754957440521,-400.0,0.00016445,2]
[378679860,1754957440530,-400.0,0.00016445,2]
[378679862,1754957440540,-429.2,0.00016445,2]
[378679864,1754957440551,-400.0,0.00016445,2]
[378679866,1754957440561,-127.92838567,0.00016445,2]
[378680178,1754957443799,-840.14161433,0.00016445,2]
[378680180,1754957443809,-400.0,0.00016445,2]
[378680182,1754957443819,-400.0,0.00016445,2]
[378680184,1754957443828,-430.84,0.00016445,2]
[378680186,1754957443838,-519.95,0.00016445,2]
[378680188,1754957443848,-400.0,0.00016445,2]
[378680190,1754957443858,-400.0,0.00016445,2]
[378680192,1754957443867,-400.0,0.00016445,2]
[378680194,1754957443877,-400.95,0.00016445,2]
[378680196,1754957443886,-400.0,0.00016445,2]
[378680198,1754957443895,-400.0,0.00016445,2]
[378680200,1754957443905,-454.81,0.00016445,2]
[378680202,1754957443915,-1019.77,0.00016445,2]
[378680204,1754957443924,-504.09514142,0.00016445,2]
[378680206,1754957443934,-400.0,0.00016445,2]
[378680208,1754957443943,-400.0,0.00016445,2]
[378680210,1754957443953,-400.0,0.00016445,2]
[378680212,1754957443963,-433.99,0.00016445,2]
[378680226,1754957444071,-400.0,0.00016445,2]
[378680228,1754957444081,-294.22130837,0.00016445,2]
[378680230,1754957444090,-400.0,0.00016445,2]
[378680232,1754957444100,-400.0,0.00016445,2]
[378680234,1754957444109,-400.0,0.00016445,2]
[378680236,1754957444119,-531.81,0.00016445,2]
[378680238,1754957444128,-400.0,0.00016445,2]
[378680240,1754957444137,-400.0,0.00016445,2]
[378680242,1754957444151,-400.0,0.00016445,2]
[378680244,1754957444160,-532.19,0.00016445,2]
[378680246,1754957444169,-400.0,0.00016445,2]
[378680248,1754957444178,-400.0,0.00016445,2]
[378680250,1754957444187,-400.0,0.00016445,2]
[378680252,1754957444197,-400.0,0.00016445,2]
[378680254,1754957444207,-400.0,0.00016445,2]
[378680256,1754957444216,-400.0,0.00016445,2]
[378680258,1754957444225,-400.0,0.00016445,2]
[378680260,1754957444234,-400.0,0.00016445,2]
[378680262,1754957444243,-400.0,0.00016445,2]
[378680264,1754957444253,-400.0,0.00016445,2]
[378680266,1754957444262,-400.0,0.00016445,2]
[378680268,1754957444271,-400.0,0.00016445,2]
[378680270,1754957444281,-617.85,0.00016445,2]
[378680272,1754957444291,-400.0,0.00016445,2]
[378680274,1754957444300,-400.0,0.00016445,2]
[378680276,1754957444310,-400.0,0.00016445,2]
[378680278,1754957444320,-400.0,0.00016445,2]
[378680280,1754957444329,-400.0,0.00016445,2]
[378680282,1754957444338,-655.31,0.00016445,2]
[378680284,1754957444348,-400.0,0.00016445,2]
[378680286,1754957444357,-400.0,0.00016445,2]
[378680288,1754957444366,-400.0,0.00016445,2]
[378680289,1754957444375,-400.0,0.00016445,2]
[378680291,1754957444384,-400.0,0.00016445,2]
[378680293,1754957444393,-400.0,0.00016445,2]
[378680295,1754957444403,-400.0,0.00016445,2]
[378680297,1754957444412,-400.0,0.00016445,2]
[378680299,1754957444421,-400.0,0.00016445,2]
[378680300,1754957444430,-400.0,0.00016445,2]
[378680302,1754957444439,-492.80000184,0.00016445,2]
[378680304,1754957444448,-400.0,0.00016445,2]
[378680306,1754957444459,-400.0,0.00016445,2]
[378680308,1754957444468,-424.54,0.00016445,2]
[378680310,1754957444481,-452.76,0.00016445,2]
[378680312,1754957444491,-219.85106315,0.00016445,2]
[378680314,1754957444500,-400.0,0.00016445,2]
[378680316,1754957444509,-400.0,0.00016445,2]
[378680318,1754957444519,-400.0,0.00016445,2]
[378680320,1754957444528,-400.0,0.00016445,2]
[378680322,1754957444537,-400.0,0.00016445,2]
[378680324,1754957444546,-400.0,0.00016445,2]
[378680326,1754957444558,-400.0,0.00016445,2]
[378680328,1754957444568,-400.0,0.00016445,2]
[378680330,1754957444577,-400.0,0.00016445,2]
[378680331,1754957444587,-400.0,0.00016445,2]
[378680332,1754957444596,-400.0,0.00016445,2]
[378680333,1754957444609,-400.0,0.00016445,2]
[378680334,1754957444618,-400.0,0.00016445,2]
[378680335,1754957444627,-400.0,0.00016445,2]
[378680336,1754957444636,-400.0,0.00016445,2]
[378680337,1754957444645,-400.0,0.00016445,2]
[378680338,1754957444655,-400.0,0.00016445,2]
[378680339,1754957444664,-400.0,0.00016445,2]
[378680340,1754957444674,-400.0,0.00016445,2]
[378680341,1754957444683,-400.0,0.00016445,2]
[378680343,1754957444692,-400.0,0.00016445,2]
[378680345,1754957444701,-400.0,0.00016445,2]
[378680347,1754957444710,-400.0,0.00016445,2]
[378680349,1754957444720,-400.0,0.00016445,2]
[378680351,1754957444729,-400.0,0.00016445,2]
[378680353,1754957444738,-400.0,0.00016445,2]
[378680355,1754957444748,-400.0,0.00016445,2]
[378680357,1754957444756,-400.0,0.00016445,2]
[378680359,1754957444765,-400.0,0.00016445,2]
[378680361,1754957444775,-400.0,0.00016445,2]
[378680363,1754957444784,-400.0,0.00016445,2]
[378680365,1754957444793,-400.0,0.00016445,2]
[378680367,1754957444802,-400.0,0.00016445,2]
[378680369,1754957444812,-400.0,0.00016445,2]
[378680371,1754957444821,-400.0,0.00016445,2]
[378680373,1754957444831,-400.0,0.00016445,2]
[378680375,1754957444840,-400.0,0.00016445,2]
[378680377,1754957444849,-411.83,0.00016445,2]
[378680379,1754957444859,-401.98,0.00016445,2]
[378680381,1754957444868,-977.04,0.00016445,2]
[378680383,1754957444877,-400.0,0.00016445,2]
[378680385,1754957444886,-400.0,0.00016445,2]
[378680387,1754957444897,-400.0,0.00016445,2]
[378680389,1754957444906,-400.0,0.00016445,2]
[378680391,1754957444915,-579.44,0.00016445,2]
[378680393,1754957444925,-400.0,0.00016445,2]
[378680395,1754957444934,-400.0,0.00016445,2]
[378680397,1754957444943,-400.0,0.00016445,2]
[378680399,1754957444953,-400.0,0.00016445,2]
[378680401,1754957444962,-400.0,0.00016445,2]
[378680403,1754957444971,-400.0,0.00016445,2]
[378680405,1754957444981,-400.0,0.00016445,2]
[378680407,1754957444991,-400.0,0.00016445,2]
[378680409,1754957445000,-114.45328096,0.00016445,2]
[378680546,1754957446337,-455.86671904,0.00016445,2]
[378680548,1754957446346,-268.39636934,0.00016445,2]
[378680576,1754957446585,-131.60363066,0.00016445,2]
[378680578,1754957446595,-400.0,0.00016445,2]
[378680580,1754957446606,-551.51,0.00016445,2]
[378680582,1754957446615,-400.0,0.00016445,2]
[378680584,1754957446625,-400.0,0.00016445,2]
[378680586,1754957446634,-400.0,0.00016445,2]
[378680588,1754957446645,-400.0,0.00016445,2]
[378680590,1754957446655,-400.0,0.00016445,2]
[378680592,1754957446664,-400.0,0.00016445,2]
[378680594,1754957446673,-400.0,0.00016445,2]
[378680596,1754957446682,-400.0,0.00016445,2]
[378680598,1754957446692,-400.0,0.00016445,2]
[378680600,1754957446702,-400.0,0.00016445,2]
[378680602,1754957446712,-448.45,0.00016445,2]
[378680604,1754957446721,-400.0,0.00016445,2]
[378680606,1754957446731,-400.0,0.00016445,2]
[378680608,1754957446740,-400.0,0.00016445,2]
[378680610,1754957446749,-400.0,0.00016445,2]
[378680612,1754957446759,-400.0,0.00016445,2]
[378680614,1754957446768,-400.0,0.00016445,2]
[378680616,1754957446777,-400.0,0.00016445,2]
[378680618,1754957446786,-400.0,0.00016445,2]
[378680619,1754957446796,-465.45,0.00016445,2]
[378680621,1754957446805,-400.0,0.00016445,2]
[378680623,1754957446814,-471.21,0.00016445,2]
[378680625,1754957446823,-423.38616352,0.00016445,2]
[378680627,1754957446833,-400.0,0.00016445,2]
[378680629,1754957446842,-400.0,0.00016445,2]
[378680631,1754957446853,-400.0,0.00016445,2]
[378680633,1754957446862,-400.0,0.00016445,2]
[378680635,1754957446871,-400.0,0.00016445,2]
[378680637,1754957446884,-463.75,0.00016445,2]
[378680639,1754957446893,-400.0,0.00016445,2]
[378680641,1754957446903,-503.15,0.00016445,2]
[378680643,1754957446912,-400.0,0.00016445,2]
[378680645,1754957446922,-400.0,0.00016445,2]
[378680647,1754957446931,-455.95325609,0.00016445,2]
[378680649,1754957446940,-400.0,0.00016445,2]
[378680651,1754957446951,-406.51961787,0.00016445,2]
[378680653,1754957446961,-494.05,0.00016445,2]
[378680655,1754957446971,-400.0,0.00016445,2]
[378680657,1754957446980,-400.0,0.00016445,2]
[378680659,1754957446989,-637.59,0.00016445,2]
[378680661,1754957446999,-427.47,0.00016445,2]
[378680663,1754957447008,-400.0,0.00016445,2]
[378680665,1754957447017,-400.0,0.00016445,2]
[378680667,1754957447026,-476.18,0.00016445,2]
[378680669,1754957447036,-435.12,0.00016445,2]
[378680671,1754957447046,-982.79,0.00016445,2]
[378680673,1754957447055,-400.0,0.00016445,2]
[378680675,1754957447064,-400.0,0.00016445,2]
[378680677,1754957447075,-400.0,0.00016445,2]
[378680679,1754957447085,-508.88,0.00016445,2]
[378680681,1754957447095,-400.0,0.00016445,2]
[378680683,1754957447106,-400.0,0.00016445,2]
[378680685,1754957447115,-444.22,0.00016445,2]
[378680687,1754957447125,-400.0,0.00016445,2]
[378680689,1754957447134,-400.0,0.00016445,2]
[378680691,1754957447143,-835.81,0.00016445,2]
[378680693,1754957447152,-152.4846587,0.00016445,2]
[378680695,1754957447162,-511.87,0.00016445,2]
[378680696,1754957447171,-400.0,0.00016445,2]
[378680698,1754957447180,-400.0,0.00016445,2]
[378680700,1754957447189,-400.0,0.00016445,2]
[378680702,1754957447199,-340.22852,0.00016445,2]
[378680704,1754957447209,-400.0,0.00016445,2]
[378680706,1754957447219,-1347.01,0.00016445,2]
[378680708,1754957447228,-430.07,0.00016445,2]
[378680710,1754957447238,-400.0,0.00016445,2]
[378680712,1754957447247,-400.0,0.00016445,2]
[378680714,1754957447258,-400.0,0.00016445,2]
[378680716,1754957447267,-476.04,0.00016445,2]
[378680718,1754957447276,-400.0,0.00016445,2]
[378680720,1754957447286,-400.0,0.00016445,2]
[378680722,1754957447296,-400.0,0.00016445,2]
[378680724,1754957447305,-692.02,0.00016445,2]
[378680726,1754957447315,-400.0,0.00016445,2]
[378680728,1754957447325,-400.0,0.00016445,2]
[378680730,1754957447334,-400.0,0.00016445,2]
[378680732,1754957447344,-400.0,0.00016445,2]
[378680734,1754957447353,-400.0,0.00016445,2]
[378680736,1754957447363,-841.7,0.00016445,2]
[378680738,1754957447372,-400.0,0.00016445,2]
[378680740,1754957447382,-400.0,0.00016445,2]
[378680742,1754957447391,-400.0,0.00016445,2]
[378680744,1754957447401,-400.0,0.00016445,2]
[378680746,1754957447410,-1155.33,0.00016445,2]
[378680748,1754957447419,-119.75392851,0.00016445,2]
[378680867,1754957481595,237.68,0.00013699,2]
[378680873,1754957686322,513.0,0.00015854,2]
[378680875,1754957734398,257.05,0.0001554,2]
[378680876,1754957756602,160.0,0.00016,2]
[378680878,1754957787085,270.59,0.00015506,2]
[378680883,1754957860552,26330.21,0.00015433,2]
[378680884,1754957862197,166.0,0.00016,2]
[378680886,1754957899436,1000.0,0.00015528,2]
[378680887,1754957906447,1500.0,0.00016,2]
[378680888,1754957957917,160.7,0.00016,2]
[378680895,1754958349305,185.68,0.0001549,2]
[378680986,1754958472136,225.79,0.00013699,2]
[378681006,1754958631514,-168.0,0.00016057,2]
[378681007,1754958631524,-250.0,0.00016074,2]
[378681008,1754958631533,-1084.0,0.00016104,2]
[378681009,1754958631542,-1213.14822,0.0001628,2]
[378681010,1754958631551,-162.99337711,0.00016345,2]
[378681011,1754958631561,-7764.68609024,0.00016345,2]
[378681012,1754958631622,-252.34878001,0.00016345,2]
[378681013,1754958631679,-4839.41063151,0.00016345,2]
[378681014,1754958631688,-229.09562979,0.000164,2]
[378681015,1754958631697,-229.09562967,0.00016403,2]
[378681016,1754958631706,-676.31698059,0.00016428,2]
[378681017,1754958631715,-231.28369723,0.00016428,2]
[378681018,1754958631724,-1200.0,0.00016434,2]
[378681019,1754958631733,-601.26268498,0.00016435,2]
[378681020,1754958631742,-160.0,0.00016435,2]
[378681021,1754958631751,-600.0,0.00016435,2]
[378681023,1754958631761,-346.92554585,0.00016435,2]
[378681024,1754958631770,-166.0,0.00016437,2]
[378681025,1754958631779,-153.1710602,0.00016437,2]
[378681026,1754958631789,-290.0,0.00016438,2]
[378681027,1754958631798,-290.0,0.00016438,2]
[378681028,1754958631807,-290.0,0.00016438,2]
[378681029,1754958631816,-290.0,0.00016438,2]
[378681030,1754958631826,-290.0,0.00016438,2]
[378681031,1754958631836,-290.0,0.00016438,2]
[378681032,1754958631845,-290.0,0.00016438,2]
[378681033,1754958631854,-290.0,0.00016438,2]
[378681034,1754958631864,-290.0,0.00016438,2]
[378681035,1754958631873,-290.0,0.00016438,2]
[378681036,1754958631883,-290.0,0.00016438,2]
[378681037,1754958631893,-290.0,0.00016438,2]
[378681039,1754958631903,-290.0,0.00016438,2]
[378681040,1754958631912,-153.0,0.00016438,2]
[378681042,1754958631921,-153.0,0.00016438,2]
[378681044,1754958631930,-153.0,0.00016438,2]
[378681046,1754958631938,-153.0,0.00016438,2]
[378681048,1754958631947,-153.0,0.00016438,2]
[378681050,1754958631957,-153.0,0.00016438,2]
[378681052,1754958631966,-290.0,0.00016438,2]
[378681054,1754958631976,-290.0,0.00016438,2]
[378681056,1754958631986,-290.0,0.00016438,2]
[378681058,1754958631995,-290.0,0.00016438,2]
[378681061,1754958632005,-290.0,0.00016438,2]
[378681063,1754958632015,-130.24301295,0.00016438,2]
[378681065,1754958632027,-159.75698705,0.00016438,2]
[378681067,1754958632037,-290.0,0.00016438,2]
[378681069,1754958632046,-290.0,0.00016438,2]
[378681071,1754958632055,-290.0,0.00016438,2]
[378681073,1754958632065,-290.0,0.00016438,2]
[378681076,1754958632074,-290.0,0.00016438,2]
[378681079,1754958632083,-290.0,0.00016438,2]
[378681081,1754958632092,-94.09711311,0.00016438,2]
[378681084,1754958632115,-195.90288689,0.00016438,2]
[378681086,1754958632125,-290.0,0.00016438,2]
[378681088,1754958632134,-153.0,0.00016438,2]
[378681090,1754958632143,-41.263458,0.00016438,2]
[378681094,1754958632168,-111.736542,0.00016438,2]
[378681096,1754958632177,-153.0,0.00016438,2]
[378681098,1754958632187,-153.0,0.00016438,2]
[378681100,1754958632196,-153.0,0.00016438,2]
[378681102,1754958632205,-153.0,0.00016438,2]
[378681104,1754958632214,-153.0,0.00016438,2]
[378681106,1754958632223,-663.18,0.00016443,2]
[378681108,1754958632232,-400.0,0.00016443,2]
[378681110,1754958632242,-574.72,0.00016443,2]
[378681112,1754958632250,-978.66,0.00016443,2]
[378681114,1754958632260,-539.9,0.00016443,2]
[378681116,1754958632269,-400.0,0.00016443,2]
[378681118,1754958632278,-480.66,0.00016443,2]
[378681120,1754958632288,-446.06,0.00016443,2]
[378681122,1754958632297,-632.96,0.00016443,2]
[378681124,1754958632306,-833.05,0.00016443,2]
[378681126,1754958632316,-1096.67392979,0.00016444,5]
[378681128,1754958632325,-400.0,0.00016444,2]
[378681130,1754958632334,-400.0,0.00016444,2]
[378681132,1754958632344,-594.7,0.00016444,2]
[378681134,1754958632353,-400.0,0.00016444,2]
[378681136,1754958632362,-400.0,0.00016444,2]
[378681138,1754958632371,-400.0,0.00016444,2]
[378681140,1754958632380,-400.0,0.00016444,2]
[378681142,1754958632390,-400.0,0.00016444,2]
[378681144,1754958632400,-400.0,0.00016444,2]
[378681146,1754958632409,-400.0,0.00016444,2]
[378681148,1754958632418,-400.0,0.00016444,2]
[378681150,1754958632427,-400.0,0.00016444,2]
[378681152,1754958632437,-400.0,0.00016444,2]
[378681154,1754958632446,-400.0,0.00016444,2]
[378681156,1754958632455,-400.0,0.00016444,2]
[378681158,1754958632465,-400.0,0.00016444,2]
[378681159,1754958632474,-400.0,0.00016444,2]
[378681165,1754958632484,-400.0,0.00016444,2]
[378681166,1754958632839,-400.0,0.00016444,2]
[378681167,1754958632849,-400.0,0.00016444,2]
[378681168,1754958632858,-400.0,0.00016444,2]
[378681169,1754958632868,-400.0,0.00016444,2]
[378681170,1754958632877,-525.11,0.00016444,2]
[378681171,1754958632886,-400.0,0.00016444,2]
[378681172,1754958632896,-400.0,0.00016444,2]
[378681173,1754958632905,-541.43,0.00016444,2]
[378681174,1754958632914,-400.0,0.00016444,2]
[378681175,1754958632923,-400.0,0.00016444,2]
[378681176,1754958632932,-400.0,0.00016444,2]
[378681177,1754958632941,-400.0,0.00016444,2]
[378681178,1754958632951,-400.0,0.00016444,2]
[378681180,1754958632960,-400.0,0.00016444,2]
[378681182,1754958632969,-586.31,0.00016444,2]
[378681184,1754958632979,-400.0,0.00016444,2]
[378681186,1754958632988,-400.0,0.00016444,2]
[378681187,1754958632997,-400.0,0.00016444,2]
[378681189,1754958633007,-400.0,0.00016444,2]
[378681191,1754958633016,-400.0,0.00016444,2]
[378681193,1754958633025,-400.0,0.00016444,2]
[378681195,1754958633035,-400.0,0.00016444,2]
[378681197,1754958633046,-400.0,0.00016444,2]
[378681199,1754958633055,-445.65,0.00016444,2]
[378681201,1754958633065,-400.0,0.00016444,2]
[378681203,1754958633074,-400.0,0.00016444,2]
[378681205,1754958633084,-400.0,0.00016444,2]
[378681207,1754958633093,-400.0,0.00016444,2]
[378681210,1754958633104,-555.3,0.00016444,2]
[378681211,1754958633113,-400.0,0.00016444,2]
[378681214,1754958633123,-160.0,0.00016444,2]
[378681216,1754958633133,-455.46,0.00016444,2]
[378681218,1754958633143,-528.53,0.00016444,2]
[378681220,1754958633152,-808.45,0.00016444,2]
[378681222,1754958633162,-400.0,0.00016444,2]
[378681224,1754958633172,-400.0,0.00016444,2]
[378681226,1754958633181,-400.0,0.00016444,2]
[378681228,1754958633191,-600.96,0.00016444,2]
[378681230,1754958633200,-400.0,0.00016444,2]
[378681232,1754958633209,-400.0,0.00016444,2]
[378681234,1754958633219,-400.0,0.00016444,2]
[378681236,1754958633228,-400.0,0.00016444,2]
[378681238,1754958633238,-400.0,0.00016444,2]
[378681240,1754958633247,-400.0,0.00016444,2]
[378681242,1754958633257,-400.0,0.00016444,2]
[378681244,1754958633266,-482.19,0.00016444,2]
[378681245,1754958633275,-400.0,0.00016444,2]
[378681247,1754958633285,-349.959486,0.00016444,2]
[378681249,1754958633295,-121.09487345,0.00016444,2]
[378681257,1754958637341,-400.0,0.00016443,2]
[378681258,1754958637351,-88.66430191,0.00016444,2]
[378681259,1754958637399,-338.59470764,0.00016444,2]
[378681260,1754958637408,-400.0,0.00016444,2]
[378681261,1754958637418,-611.02,0.00016444,2]
[378681262,1754958637427,-400.0,0.00016444,2]
[378681263,1754958637437,-409.66,0.00016444,2]
[378681264,1754958637446,-400.0,0.00016444,2]
[378681265,1754958637455,-493.56820987,0.00016444,2]
[378681266,1754958637467,-158.48035113,0.00016444,2]
[378681267,1754958637476,-252.26091242,0.00016444,2]
[378681268,1754958637488,-147.73908758,0.00016444,2]
[378681269,1754958637497,-210.59576406,0.00016444,2]